[Event "FIDE WSTC Open 50 2025"]
[Site "Prague"]
[Date "2025.02.17"]
[Round "1.24"]
[White "Zielinski, Olgierd"]
[Black "Motuz, Karol"]
[Result "1/2-1/2"]
[Annotator "TA"]
[ECO "C52"]
[WhiteElo "1897"]
[BlackElo "2293"]
[PlyCount "31"]
[EventDate "2025.02.17"]
[EventType "team-tourn"]
[EventCountry "CZE"]
[SourceTitle "playchess.com"]
[Source "ChessBase"]
[SourceQuality "1"]
[TimeControl "40/5400+30:1800+30"]

{[%evp 14,31,-22,-10,-16,-34,-22,-12,0,-8,94,89,135,138,148,145,237,231,295,46]} 1. e4 {[%emt 0:00:05]} e5 2. Nf3 {[%emt 0:00:23]} Nc6 {[%emt 0:00:18]} 3. Bc4 {[%emt 0:00:57]} Bc5 {[%emt 0:00:47]} 4. b4 {[%emt 0:01:51]} Bxb4 {[%emt 0:00:54]} 5. c3 {[%emt 0:00:13]} Ba5 {[%emt 0:01:36]} 6. d4 {[%emt 0:01:11]} d6 {[%emt 0:02:54]} 7. Qb3 {[%emt 0:01:41]} Qd7 {[%emt 0:02:38]} 8. O-O {[%emt 0:01:30]} Bb6 {[%emt 0:08:10] C52: Evans Gambit Accepted: 5 c3 Ba5.} 9. Nbd2 $1 {[%emt 0:02:41] 9.Nbd2 is better than 9.Bb5.} Na5 {[%emt 0:09:48]} 10. Qc2 {[%emt 0:00:06]} Nxc4 {[%emt 0:00:19] The position is equal.} 11. Nxc4 {[%emt 0:00:06]} f6 {[%emt 0:02:28]} (11... Qc6 $1 $11 {keeps the balance.} 12. Nxb6 axb6) 12. a4 $16 {[%emt 0:10:48] a5 would now be deadly. White has more active pieces.} Qf7 {[%emt 0:07:46]} ({Black should play} 12... a6) 13. Qd3 $1 {[%emt 0:03:17]} Be6 {[%emt 0:03:48] [#]} 14. Nfd2 {[%emt 0:01:17]} Bxc4 $146 {[%emt 0:25:48]} (14... Ne7 $16) (14... a6 15. Rb1 Ne7 16. Rxb6 O-O-O 17. Rb2 d5 18. Na5 dxe4 19. Nxe4 Bd5 20. Nc5 Qg6 21. Qxg6 hxg6 22. Naxb7 {1-0 Zhigalko,S (2572)-Kevlishvili,R (2551) Titled Tuesday intern op 17th Sep Early blitz 2024 (5)}) 15. Nxc4 $18 {[%emt 0:00:10]} d5 {[%emt 0:01:31] [#]} 16. Nxb6 $2 {[%emt 0:03:24] Black got outplayed after the opening.   Weighted Error Value: White=0.00 (flawless) /Black=0.44  Missed win:     	White=1     	---        Mistake:       	---       	Black=3      OK:         	White=4     	Black=1      Strong:       	White=1     	---} (16. exd5 $1 $18 Qxd5 17. Qe2) 1/2-1/2

[Event "FIDE WSTC Open 50 2025"]
[Site "Prague"]
[Date "2025.02.17"]
[Round "1.25"]
[White "Lima, Darcy"]
[Black "Haba, Petr"]
[Result "1-0"]
[Annotator "TA"]
[ECO "A11"]
[WhiteElo "2378"]
[BlackElo "2442"]
[PlyCount "133"]
[EventDate "2025.02.17"]
[EventType "team-tourn"]
[EventCountry "CZE"]
[SourceTitle "playchess.com"]
[Source "ChessBase"]
[SourceQuality "1"]
[TimeControl "40/5400+30:1800+30"]

{[%evp 9,133,16,23,21,22,21,18,26,33,0,2,9,20,22,29,34,29,19,28,4,43,16,15,0,29,15,16,21,11,13,17,19,53,10,13,15,8,8,14,14,16,10,64,68,77,84,119,116,129,131,137,119,181,183,236,157,327,254,258,244,285,250,233,31,29,31,253,249,228,220,307,280,328,321,356,450,431,286,575,565,568,566,675,552,630,595,502,389,704,855,852,822,851,849,770,601,6211,6211,5210,654,342,5314,4133,1635,1072,768,718,738,1070,964,712,0,865,833,845,847,1083,1083,1071,1050,846,0,1027,1006,1543,1576]} 1. c4 {[%emt 0:00:05]} c6 {[%emt 0:00:18]} 2. Nf3 {[%emt 0:00:36]} d5 {[%emt 0:00:05]} 3. g3 {[%emt 0:00:09]} dxc4 {[%emt 0:00:06]} 4. Bg2 {[%emt 0:00:39]} Nd7 {[%emt 0:00:05]} 5. Na3 {[%emt 0:00:23]} Nb6 {[%emt 0:00:59][%cal Oe7e5]} 6. Qc2 {[%emt 0:00:32] A11: English Opening: 1...c6.} g6 {[%emt 0:00:27]} 7. Nxc4 {[%emt 0:01:06]} Nxc4 {[%emt 0:01:42]} 8. Qxc4 {[%emt 0:00:10] The position is equal.} Bg7 {[%emt 0:00:04] Prevents Ne5} 9. d4 {[%emt 0:02:42]} Nf6 {[%emt 0:01:15][%cal Bg8f6,Bf6e4,Be4d6,Bd6b5,Bb5d4][%mdl 32]} 10. O-O {[%emt 0:06:29]} O-O {[%emt 0:00:14]} 11. Re1 {[%emt 0:05:24]} Ne4 {[%emt 0:11:40]} 12. Qc2 Nd6 {[%emt 0:01:39]} 13. Bf4 {[%emt 0:06:25]} Nb5 {[%emt 0:03:35]} 14. Rad1 $146 {[%emt 0:02:02]} (14. Red1 Bf5 15. Qc5 Qb6 16. Qxe7 Nxd4 17. Nxd4 Bxd4 18. Rxd4 Qxd4 19. Be5 Qd8 20. Qxb7 {½-½ Apaydin,F (2260)-Solodovnichenko,Y (2561) Ayvalik Argistra 2022 (7)}) 14... Bf5 {[%emt 0:00:16]} 15. e4 {[%emt 0:06:34]} Bg4 {[%emt 0:00:14]} 16. d5 {[%emt 0:01:27]} Bxf3 {[%emt 0:12:50]} 17. Bxf3 {[%emt 0:00:09]} Nd4 {[%emt 0:00:04]} 18. Qd3 {[%emt 0:00:16]} cxd5 {[%emt 0:00:23]} 19. exd5 {[%emt 0:01:03]} Nxf3+ {[%emt 0:01:45]} 20. Qxf3 {[%emt 0:00:06]} Qd7 {[%emt 0:00:03][%cal Oa8c8]} 21. Be5 {[%emt 0:08:17]} Rfe8 {[%emt 0:06:25]} 22. Bxg7 {[%emt 0:06:15]} Kxg7 {[%emt 0:00:21]} 23. Re5 {[%emt 0:00:14]} Rad8 {[%emt 0:03:26]} 24. Rde1 {[%emt 0:01:09]} Qd6 {[%emt 0:02:25]} 25. h4 {[%emt 0:04:22]} Qf6 {[%emt 0:06:33]} (25... h5 $11) 26. Qe3 $14 {[%emt 0:00:49][%csl LRa7,LRe7]} a6 {[%emt 0:00:54]} 27. h5 {[%emt 0:01:11]} (27. Rxe7 Rxe7 28. Qxe7 Rxd5 $11) 27... gxh5 {[%emt 0:04:38]} 28. Rxh5 {[%emt 0:08:20]} (28. Rxe7 Rxe7 29. Qxe7 Rxd5 30. Qxf6+ Kxf6 $15) 28... h6 {[%emt 0:01:40][%cal Od8d6]} 29. Kg2 {[%emt 0:03:45][%csl Oh6] White attacks a weakness White is more active.} Rd6 30. Reh1 {[%emt 0:03:58][%cal Be1h1,Bh1h4,Bh4c4,Bc4c7][%mdl 32]} Rh8 {[%emt 0:03:56]} (30... Qg6 $16 31. R1h4 Rf6) 31. R1h4 $18 {[%emt 0:03:22] [#]} Kf8 {[%emt 0:03:57]} (31... Re8 $142 32. Re5 (32. Rxh6 Qxh6 33. Rxh6 Rxh6 $16) 32... Kf8) 32. b4 {[%emt 0:06:28]} Qb2 $2 {[%emt 0:09:35]} (32... Qg6 $16 33. Re5 Rd7) 33. Rc4 {[%emt 0:11:47]} (33. Rxh6 Rhxh6 34. Rxh6 Rxd5 $16) 33... Qf6 {[%emt 0:06:27] Prevents Rf5} 34. Rc7 {[%emt 0:04:06]} Rg8 {[%emt 0:04:28]} 35. Re5 $40 {[%emt 0:05:51][%cal Re5e7][%mdl 128] White wants a kill.} Rg5 {[%emt 0:00:18]} 36. f4 {[%emt 0:01:08]} (36. Rcxe7 Rxd5 37. Rxd5 Rxd5 (37... Qxe7 $2 38. Qd4 $18) 38. Rxb7 Kg7) (36. Rexe7 $18 Rgxd5 37. Rxb7) 36... Rxd5 $14 {[%emt 0:01:22]} 37. Rexe7 {[%emt 0:00:46]} Rgf5 $2 {[%emt 0:04:58] Black is on the road to losing.} ({Black should play} 37... Qb2+ $14 38. Kf3 Rdf5) 38. Rxf7+ $18 {[%emt 0:00:42]} (38. Rxb7 Qc6 39. Kh3 Rb5 $17) 38... Qxf7 {[%emt 0:00:05]} 39. Rxf7+ {[%emt 0:00:01]} Rxf7 {[%emt 0:01:21][%mdl 4096] Endgame KQ-KRR} 40. Qe6 {[%emt 0:00:02][%csl LRd5,LRh6]} Rd2+ {[%emt 0:00:28]} 41. Kh3 {[%emt 0:31:29]} Kg7 {[%emt 0:31:34]} 42. f5 {[%emt 0:00:00] [#]} Rdd7 {[%emt 0:00:00]} 43. Kg4 {[%emt 0:00:00][%cal Of5f6]} Rc7 $2 {[%emt 0:00:00]} (43... Rd1 {is a better defense.} 44. Qg6+ Kf8 45. Qxh6+ Rg7+ 46. Kf4 Kg8 47. Qe6+ Kh7) 44. Qg6+ {[%emt 0:00:00]} Kf8 {[%emt 0:00:00] Threatens to win with ...Rg7.} 45. Qxh6+ {[%emt 0:00:00]} Kg8 {[%emt 0:00:00]} 46. Qe6 {[%emt 0:00:00] Dodges Rc4+} Rce7 {[%emt 0:00:00]} 47. Qc8+ {[%emt 0:00:00]} Kh7 {[%emt 0:00:00]} 48. Kf4 {[%emt 0:00:00]} Re1 $2 {[%emt 0:00:00]} (48... Rd7 49. Qc4 Rf6) 49. Qc4 {[%emt 0:00:00]} Rd7 {[%emt 0:00:00]} 50. g4 {[%emt 0:00:00]} Red1 {[%emt 0:00:00]} 51. Ke5 {[%emt 0:00:00]} b5 {[%emt 0:01:39]} 52. Qc6 {[%emt 0:01:41][%cal Oe5e6]} Re7+ {[%emt 0:00:36]} 53. Kf6 {[%emt 0:01:08]} Rg7 {[%emt 0:00:25]} 54. Qg2 {[%emt 0:01:37]} (54. Qxa6 Rd8 55. Qxb5 Rxg4 $18) (54. g5 $142 Rg1 55. Qe4 (55. Qxa6 R1xg5 56. Qxb5 Rg4 $18) 55... R7xg5 56. Qh4+ Kg8 57. Qxg5+ Rxg5 58. Kxg5) 54... Rd6+ {[%emt 0:04:05]} 55. Ke5 {[%emt 0:00:05]} Rh6 {[%emt 0:00:03]} 56. Qg3 (56. f6 $142 Rg8 57. Qe4+ Kh8 58. Qf4 (58. Kf5 a5 $18)) 56... Re7+ {[%emt 0:00:55]} 57. Kd5 {[%emt 0:03:00]} Rd7+ {[%emt 0:02:12]} 58. Kc5 {[%emt 0:00:00]} Rf6 {[%emt 0:00:36]} 59. Qh3+ {[%emt 0:00:20]} Rh6 {[%emt 0:00:39]} 60. Qg3 {[%emt 0:00:01]} Rf6 {[%emt 0:00:05]} 61. Qf4 {[%emt 0:00:42] Black must now prevent g5.} Rdf7 {[%emt 0:00:07]} 62. Kd5 {[%emt 0:00:15]} Kg7 {[%emt 0:00:09]} 63. Qe5 {[%emt 0:00:59]} Kf8 {[%emt 0:00:03]} 64. Qb8+ {[%emt 0:00:31]} Kg7 {[%emt 0:00:06]} 65. Qe5 {[%emt 0:00:16] Threatening mate with g5.} Kf8 $1 {[%emt 0:00:01]} 66. Qc3 {[%emt 0:00:55]} Ke7 {[%emt 0:02:40]} 67. Ke5 {[%emt 0:00:56] Weighted Error Value: White=0.60/Black=0.49  Loses game:     	---       	Black=2      Missed win:     	White=1     	---        Mistake:       	White=1     	Black=5      Inaccurate:     	White=5     	Black=6      OK:         	White=14    	Black=12     Best:        	White=4     	Black=2} 1-0

[Event "FIDE WSTC Open 50 2025"]
[Site "Prague"]
[Date "2025.02.17"]
[Round "1.26"]
[White "Jirovsky, Milos"]
[Black "Peixoto, Rudson Marinho"]
[Result "1-0"]
[Annotator "TA"]
[ECO "A14"]
[WhiteElo "2410"]
[BlackElo "1948"]
[PlyCount "85"]
[EventDate "2025.02.17"]
[EventType "team-tourn"]
[EventCountry "CZE"]
[SourceTitle "playchess.com"]
[Source "ChessBase"]
[SourceQuality "1"]
[TimeControl "40/5400+30:1800+30"]

{[%evp 10,85,21,-33,20,20,37,4,76,44,41,21,64,63,54,45,84,81,76,75,144,156,112,12,97,90,110,105,87,85,114,117,114,107,102,106,102,106,108,108,99,102,123,109,135,120,120,108,109,108,115,114,126,105,918,913,902,862,998,992,1008,1008,1008,1007,840,417,1355,1339,1219,1203,29962,29961,29941,6095,29975,29975,29974,29975]} 1. Nf3 {[%emt 0:00:02]} Nf6 {[%emt 0:00:29]} 2. c4 {[%emt 0:00:06]} e6 {[%emt 0:00:48]} 3. g3 {[%emt 0:00:06]} d5 {[%emt 0:00:09]} 4. Bg2 {[%emt 0:00:08]} Be7 {[%emt 0:00:12]} 5. O-O {[%emt 0:00:26]} O-O {[%emt 0:00:05]} 6. Qc2 {[%emt 0:00:26]} (6. d4 $11) 6... Nc6 {[%emt 0:01:17] A14: English Opening: 1...e6 with b3 by White.} (6... d4 $15) 7. d4 $11 {[%emt 0:00:34]} h6 {[%emt 0:00:20]} 8. Rd1 {[%emt 0:00:19]} Bd7 {[%emt 0:02:09]} (8... Nb4 $11 9. Qb3 dxc4 10. Qxc4 e5) 9. Nbd2 {[%emt 0:00:47]} Nb4 $146 {[%emt 0:09:04]} (9... Qc8 10. e4 Nb4 11. Qb1 c5 12. e5 Nh7 13. a3 Nc6 14. dxc5 Bxc5 15. b4 Bb6 {1-0 Gnevyshev,V (1662)-Khamli,Y (1594) Wch Amateurs U1700 2024 (2)}) 10. Qb1 {[%emt 0:01:39]} a5 {[%emt 0:06:28]} 11. a3 {[%emt 0:01:38]} Na6 {[%emt 0:00:09]} 12. Ne5 {[%emt 0:03:02][%cal Bf3e5,Be5d3,Bd3f4][%mdl 32]} Be8 {[%emt 0:00:36]} 13. b3 {[%emt 0:04:37]} c5 {[%emt 0:04:37]} 14. Bb2 {[%emt 0:01:34] White is more active.} Qb6 {[%emt 0:00:18] [#]} (14... a4 $142) 15. cxd5 $1 $16 {[%emt 0:02:11]} exd5 {[%emt 0:00:13]} 16. dxc5 {[%emt 0:00:38]} ({White should play} 16. e4 $16) 16... Bxc5 {[%emt 0:01:50]} (16... Nxc5 $11 {remains equal.} 17. e3 Ne6) 17. Nd3 {[%emt 0:00:17]} Bd4 {[%emt 0:01:51]} 18. Bxd4 {[%emt 0:01:40]} Qxd4 {[%emt 0:00:15]} 19. Nf4 {[%emt 0:00:34][%cal Od2e4]} Nc7 {[%emt 0:08:58] [#]} 20. Ne4 $1 {[%emt 0:07:06][%mdl 512]} Qe5 {[%emt 0:04:50]} 21. Nxf6+ {[%emt 0:01:17]} Qxf6 {[%emt 0:00:11]} 22. Nxd5 {[%emt 0:00:45]} Nxd5 {[%emt 0:00:22]} 23. Bxd5 {[%emt 0:00:09]} Bc6 {[%emt 0:00:03]} 24. Bxc6 {[%emt 0:00:26]} Qxc6 {[%emt 0:00:08]} 25. Qf5 {[%emt 0:00:16]} Qb6 {[%emt 0:01:24]} 26. Rd3 {[%emt 0:01:00]} Rfe8 {[%emt 0:02:00]} 27. e3 {[%emt 0:03:43]} g6 {[%emt 0:00:16]} 28. Qf4 {[%emt 0:01:49]} Rad8 {[%emt 0:00:19]} 29. Rad1 {[%emt 0:00:43]} h5 {[%emt 0:00:53]} 30. Qa4 {[%emt 0:01:42]} Kf8 {[%emt 0:03:59]} 31. b4 {[%emt 0:07:45]} axb4 {[%emt 0:00:25][%mdl 8192] Black cannot hold the game after this.} (31... Rxd3 $16 32. Rxd3 Re4) 32. Rxd8 $18 {[%emt 0:02:05]} (32. Qxb4+ Qxb4 33. axb4 Rxd3 34. Rxd3 Re4 $16) ({Not} 32. axb4 Rxd3 33. Rxd3 Rc8 $16) 32... Rxd8 {[%emt 0:00:10]} 33. Qxb4+ {[%emt 0:01:20]} Qxb4 {[%emt 0:00:11]} 34. Rxd8+ {[%emt 0:00:12]} Ke7 {[%emt 0:00:07]} 35. axb4 {[%emt 0:00:05]} Kxd8 {[%emt 0:00:09][%mdl 4096] Endgame KP-KP. White is a pawn up.} 36. Kf1 {[%emt 0:00:06]} Kc7 {[%emt 0:00:09]} 37. Ke2 {[%emt 0:00:07]} Kb6 {[%emt 0:00:11]} (37... Kc6 $142 38. Kd3 g5) 38. Kd3 {[%emt 0:00:06]} Kb5 {[%emt 0:00:11]} 39. Kc3 {[%emt 0:00:07]} f5 {[%emt 0:01:19]} 40. h4 {[%emt 0:00:24]} Kc6 {[%emt 0:01:51]} 41. Kc4 {[%emt 0:30:09] White wants to mate with f3.} b5+ {[%emt 0:30:32]} 42. Kd4 {[%emt 0:00:09]} Kd6 {[%emt 0:00:14]} 43. f3 {[%emt 0:00:05] Weighted Error Value: White=0.12 (very precise) /Black=0.86  Loses game:     	---       	Black=1      Mistake:       	White=1     	Black=3      Inaccurate:     	White=2     	Black=3      OK:         	White=10    	Black=5      Best:        	White=1     	---        Strong:       	White=1     	---} 1-0

[Event "FIDE WSTC Open 50 2025"]
[Site "Prague"]
[Date "2025.02.17"]
[Round "1.27"]
[White "Franca Junior, Jairo"]
[Black "Zvara, Petr"]
[Result "0-1"]
[Annotator "TA"]
[ECO "B17"]
[WhiteElo "1898"]
[BlackElo "2330"]
[PlyCount "138"]
[EventDate "2025.02.17"]
[EventType "team-tourn"]
[EventCountry "CZE"]
[SourceTitle "playchess.com"]
[Source "ChessBase"]
[SourceQuality "1"]
[TimeControl "40/5400+30:1800+30"]

{[%evp 17,138,3,12,13,26,-33,-26,-33,-35,-38,-38,-35,-36,-39,-32,-37,-40,-66,-63,-61,-52,-75,-56,-57,-51,-64,-66,-85,-85,-85,-68,-85,-63,-64,-45,-45,-28,-45,-18,-37,-14,-23,-20,-21,-18,-18,-15,-20,-8,-16,0,-139,-127,-119,-124,-125,-120,-149,-150,-155,-146,-145,-137,-127,-134,-143,-126,-126,-133,-145,-131,-143,-141,-126,-127,-194,-193,-194,-186,-187,-192,-183,-120,-120,-120,-199,-197,-185,-185,-201,-200,-186,-191,-281,-294,-276,-286,-294,-252,-243,-197,-189,-126,-340,-335,-824,-652,-1012,-1362,-29977,-29978,-29964,-4634,-4634,-4627,-4627,-4618,-5683,-5859,-29983,-29984,-29987,-29988]} 1. e4 {[%emt 0:00:07]} c6 {[%emt 0:00:10]} 2. d4 {[%emt 0:00:07]} d5 {[%emt 0:00:08]} 3. Nc3 {[%emt 0:00:21]} dxe4 {[%emt 0:00:22]} 4. Nxe4 {[%emt 0:00:15]} Nd7 {[%emt 0:00:37]} 5. Nf3 {[%emt 0:02:38]} Ngf6 {[%emt 0:00:09]} 6. Nxf6+ {[%emt 0:00:37]} Nxf6 {[%emt 0:00:06]} 7. Bd3 {[%emt 0:00:15]} Bg4 {[%emt 0:02:04]} 8. c3 {[%emt 0:00:10]} e6 {[%emt 0:00:15]} 9. h3 {[%emt 0:00:33]} Bh5 {[%emt 0:01:31]} 10. Qe2 {[%emt 0:00:37] B17: Caro-Kann: Modern Line (4...Nd7).} Qd5 {[%emt 0:06:37]} 11. Bf4 {[%emt 0:01:54]} (11. g4 $11 Bg6 12. O-O) 11... Bxf3 $15 {[%emt 0:03:58]} 12. Qxf3 {[%emt 0:01:32] Black has an edge.} Qxf3 {[%emt 0:00:07]} 13. gxf3 {[%emt 0:00:17]} Be7 $146 {[%emt 0:09:14]} ({Predecessor:} 13... g6 14. O-O-O Bg7 15. a4 a6 16. a5 O-O 17. Bd6 Rfd8 18. Be7 Rd7 19. Bxf6 Bxf6 20. Kc2 Rad8 {1-0 Rosh,J (2071)-Kashefi,A (2118) Titled Tuesday intern op 07th Jan Early blitz 2025 (3)}) 14. Rg1 {[%emt 0:04:17]} g6 {[%emt 0:00:07]} 15. O-O-O {[%emt 0:03:53]} Nd5 {[%emt 0:07:16]} 16. Be5 {[%emt 0:01:06]} Bf6 {[%emt 0:02:16]} 17. Rge1 {[%emt 0:05:04]} Bxe5 {[%emt 0:05:01]} 18. Rxe5 {[%emt 0:00:59]} O-O-O {[%emt 0:02:05]} 19. a3 {[%emt 0:03:13]} Rd7 {[%emt 0:00:34]} 20. h4 {[%emt 0:03:02]} h5 {[%emt 0:01:01]} 21. Ree1 {[%emt 0:02:22]} Rhd8 {[%emt 0:02:23]} 22. Bf1 Kc7 23. Kc2 {[%emt 0:04:17]} b6 {[%emt 0:03:33]} 24. Bc4 {[%emt 0:18:24]} Ne7 {[%emt 0:04:38]} 25. Bd3 {[%emt 0:03:28]} c5 {[%emt 0:04:34]} 26. dxc5 {[%emt 0:00:53]} bxc5 {[%emt 0:00:04]} 27. Re4 {[%emt 0:09:02]} Nf5 {[%emt 0:07:41]} 28. Ra4 {[%emt 0:02:09]} Kb6 {[%emt 0:02:50]} 29. Ra6+ {[%emt 0:03:31]} Kb7 {[%emt 0:00:05]} 30. Ra4 {[%emt 0:00:09]} Kb8 {[%emt 0:02:27]} 31. Be2 {[%emt 0:01:21]} Rxd1 {[%emt 0:02:30]} 32. Bxd1 $11 {[%emt 0:00:11][%mdl 4096] Endgame KRB-KRN} Rd5 {[%emt 0:02:23]} 33. Be2 {[%emt 0:01:48]} Nd6 {[%emt 0:06:20]} 34. f4 {[%emt 0:07:31]} (34. Bd3 $11 {remains equal.}) 34... Nf5 $1 $17 {[%emt 0:01:40]} 35. Bf3 {[%emt 0:07:33] [#]} Rd7 {[%emt 0:00:18]} 36. Ra5 {[%emt 0:01:40] [#]} Rc7 $1 {[%emt 0:00:08]} 37. Kd3 {[%emt 0:01:42]} (37. Rb5+ $2 Kc8 38. Kb1 Nxh4 $19) 37... Nxh4 {[%emt 0:02:47]} 38. Be4 {[%emt 0:02:20]} Nf5 {[%emt 0:02:08]} 39. b4 {[%emt 0:01:14]} Rd7+ {[%emt 0:11:21]} 40. Ke2 {[%emt 0:00:55]} cxb4 {[%emt 0:00:35]} 41. axb4 {[%emt 0:32:46]} Nd6 {[%emt 0:30:06]} 42. Bc6 {[%emt 0:00:00]} Rc7 {[%emt 0:00:00]} 43. Ra6 {[%emt 0:00:00]} Nc8 {[%emt 0:00:00]} 44. Kd3 {[%emt 0:00:00]} Ne7 {[%emt 0:00:00] Repels c4} 45. Be4 {[%emt 0:00:00]} Rd7+ {[%emt 0:00:00]} 46. Ke2 {[%emt 0:00:00]} (46. Ke3 $17) 46... Nd5 $19 {[%emt 0:00:00]} 47. Bxd5 {[%emt 0:00:00]} Rxd5 {[%emt 0:00:00] KR-KR. Black is a pawn up.} (47... exd5 48. f5 $15) 48. Ke3 {[%emt 0:00:00]} Kb7 {[%emt 0:00:00]} 49. Ra1 {[%emt 0:00:00]} a6 {[%emt 0:00:00]} (49... Rb5 $19 50. Rd1 Kc7) 50. c4 $17 {[%emt 0:00:00]} Rd8 {[%emt 0:00:00]} 51. Ra3 {[%emt 0:00:00]} (51. Rh1 $17) 51... Rd1 $19 {[%emt 0:00:00]} 52. Rb3 {[%emt 0:00:00]} Kb6 {[%emt 0:00:00]} 53. Ke4 {[%emt 0:00:00]} Re1+ {[%emt 0:00:00]} 54. Kd4 {[%emt 0:01:02]} Re2 {[%emt 0:00:00] Prevents Rb2.} 55. b5 {[%emt 0:00:34]} (55. Rf3 {might work better.}) 55... axb5 {[%emt 0:00:00]} (55... Rxf2 56. c5+ Kc7 57. b6+ Kb8 58. Rc3 $15 (58. c6 Rc2 $17)) 56. Rxb5+ {[%emt 0:00:41]} Kc6 {[%emt 0:00:00]} 57. f3 {[%emt 0:01:04]} Rf2 {[%emt 0:02:09]} 58. Ke3 {[%emt 0:01:57]} Rf1 {[%emt 0:00:06]} 59. Ra5 {[%emt 0:00:40]} h4 {[%emt 0:01:23]} (59... Rb1 $19 60. Kd4 Rf1) 60. Ke2 $2 {[%emt 0:02:39] Loses the game.} (60. Ra8 $17) 60... Rc1 {[%emt 0:00:18][%cal Oh4h3]} 61. Kd3 $2 {[%emt 0:01:07]} (61. Kf2) 61... h3 {[%emt 0:00:28] ( -> ...h2)} 62. Ra2 {[%emt 0:00:11]} Rh1 {[%emt 0:00:08] and ...h2 would now be decisive Against Rh2} 63. Ke3 h2 64. Re2 {[%emt 0:05:17]} Kc5 {[%emt 0:00:39]} (64... f5 $142 65. c5 Kxc5 66. Rc2+ Kb4 67. Rb2+ Ka3 68. Rxh2 Rxh2 69. Kd4 Rh3 70. Ke3 Rh4 71. Kd4 Rxf4+ 72. Ke5 Rxf3 73. Kf6 Kb4 74. Kg7 f4 75. Kxg6 Rd3 76. Kg7 f3 77. Kg8 f2 78. Kf8 f1=Q+ (78... f1=R+ {gets mated.} 79. Ke7 Kc5 80. Kxe6 Re3+ 81. Kd7 Rf8 82. Kc7 Re7#) 79. Ke8 Qf4 80. Ke7 Qf5 81. Ke8 Qh7 82. Kf8 Rd8#) 65. Ke4 {[%emt 0:01:09]} Kxc4 {[%emt 0:03:51] ( -> ...Rc1)} 66. Rc2+ {[%emt 0:01:21]} Kb3 {[%emt 0:00:05]} 67. Re2 {[%emt 0:00:06] Prevents Re1.} Kc3 {[%emt 0:00:19] ( -> ...Rd1)} 68. Ke5 {[%emt 0:00:32]} Kd3 {[%emt 0:00:08]} 69. Re4 {[%emt 0:00:36]} Ra1 {[%emt 0:00:14] Weighted Error Value: White=0.20 (precise) /Black=0.08 (flawless)   Loses game:     	White=1     	---        Mistake:       	White=6     	Black=2      Inaccurate:     	White=2     	Black=1      OK:         	White=17    	Black=23     Best:        	White=1     	Black=4      Strong:       	---       	Black=2} 0-1

[Event "FIDE WSTC Open 50 2025"]
[Site "Prague"]
[Date "2025.02.17"]
[Round "1.28"]
[White "Konopka, Michal"]
[Black "Serafim Junior, Arnor"]
[Result "1-0"]
[Annotator "TA"]
[ECO "E68"]
[WhiteElo "2326"]
[BlackElo "1782"]
[PlyCount "55"]
[EventDate "2025.02.17"]
[EventType "team-tourn"]
[EventCountry "CZE"]
[SourceTitle "playchess.com"]
[Source "ChessBase"]
[SourceQuality "1"]
[TimeControl "40/5400+30:1800+30"]

{[%evp 22,55,-3,2,0,0,49,-6,45,53,62,58,109,94,123,119,129,106,104,89,151,97,169,161,155,111,243,286,284,170,477,477,1027,1018,1002,993]} 1. Nf3 {[%emt 0:00:08]} Nf6 {[%emt 0:00:10]} 2. c4 {[%emt 0:00:20]} g6 {[%emt 0:00:12]} 3. g3 {[%emt 0:00:20]} Bg7 {[%emt 0:00:07]} 4. Bg2 {[%emt 0:00:02]} O-O {[%emt 0:03:28]} 5. O-O {[%emt 0:00:15]} d6 {[%emt 0:00:12]} 6. d4 {[%emt 0:00:11]} Nbd7 {[%emt 0:00:58]} 7. Nc3 {[%emt 0:00:20]} e5 {[%emt 0:02:15]} 8. e4 {[%emt 0:00:49]} Re8 {[%emt 0:01:09]} 9. h3 {[%emt 0:02:11]} a6 {[%emt 0:02:49]} 10. Re1 {[%emt 0:04:11]} Rb8 {[%emt 0:00:54]} 11. a4 {[%emt 0:07:05]} exd4 {[%emt 0:05:25]} 12. Nxd4 {[%emt 0:00:34]} Nc5 {[%emt 0:00:59] E68: King's Indian: Fianchetto: 6...Nbd7 7 0-0 e5 8 e4.} 13. a5 {[%emt 0:07:34]} h6 {[%emt 0:10:30]} (13... Nfd7 $11 {might be stronger.}) 14. f3 $146 {[%emt 0:10:06]} (14. Ra3 $14) ({Predecessor:} 14. Ra3 Ne6 15. Nc2 Ng5 16. Kh2 Be6 17. f4 Ngh7 18. Nd5 c6 19. Nb6 Nd7 20. Nxd7 Qxd7 {1-0 Inarkiev,E (2688)-Svidler,P (2743) Sochi Tal Memorial Blitz 2014 (4)}) 14... Bd7 {[%emt 0:09:18]} (14... Nfd7 $11) 15. Be3 $14 {[%emt 0:00:57]} Ne6 {[%emt 0:06:59]} 16. Nde2 {[%emt 0:03:17]} Bc6 {[%emt 0:06:32]} (16... g5 $14) 17. Qd2 $16 {[%emt 0:00:57]} Kh7 {[%emt 0:00:22]} 18. b4 {[%emt 0:00:43]} Bd7 {[%emt 0:13:35]} 19. Ra2 {[%emt 0:05:35]} Qe7 {[%emt 0:06:51]} 20. Rc2 {[%emt 0:04:36]} c6 {[%emt 0:00:29]} (20... Rbc8 $142 21. Rcc1 b5) 21. Rcc1 {[%emt 0:10:14]} ({White should try} 21. Rd1) 21... Red8 {[%emt 0:01:53]} (21... c5 $16 {is a better defense.}) 22. Bb6 $18 {[%emt 0:01:30]} Rdc8 {[%emt 0:00:48]} 23. Rcd1 {[%emt 0:00:54][%cal Of3f4] White has more active pieces.} Ne8 {[%emt 0:00:32] [#] A mistake that costs the game.} (23... c5 $16) 24. c5 $1 {[%emt 0:04:40][%mdl 512]} Bf8 {[%emt 0:04:15]} (24... d5 25. exd5) 25. cxd6 {[%emt 0:03:29]} (25. f4 $142) 25... Qf6 $2 {[%emt 0:05:39]} (25... Nxd6 26. e5 Nc4 27. Qxd7 Qxd7 28. Rxd7 Nxe5) 26. f4 {[%emt 0:00:48] White is clearly winning.} N6g7 {[%emt 0:03:28] Black is weak on the dark squares} (26... Qh8 $142 27. e5 Rd8) 27. e5 {[%emt 0:00:27]} Qe6 {[%emt 0:00:06]} 28. Nd4 {[%emt 0:03:00] Weighted Error Value: White=0.23 (precise) /Black=0.80  Mistake:       	White=3     	Black=8      Inaccurate:     	---       	Black=1      OK:         	White=6     	Black=2      Best:        	White=1     	---} 1-0